bitfinex/quotes_BTCUSD_20240629
["timestamp","ask_amount","ask_price","bid_price","bid_amount"]
[1719665415362,0.52838571,61122.0,61121.0,0.04606005]
[1719665416070,0.42088571,61122.0,61121.0,0.04606005]
[1719665417902,0.54318571,61122.0,61121.0,0.04606005]
[1719665418551,0.54318571,61122.0,61121.0,0.02306005]
[1719665418980,0.54318571,61122.0,61121.0,0.01420501]
[1719665420291,2.493861,61122.0,61121.0,0.01420501]
[1719665426280,2.599761,61122.0,61121.0,0.01420501]
[1719665428056,2.493861,61122.0,61121.0,0.01420501]
[1719665430069,2.493861,61122.0,61121.0,0.03720501]
[1719665431119,2.494701,61122.0,61121.0,0.03720501]
[1719665432899,2.372401,61122.0,61121.0,0.03720501]
[1719665442261,0.07714,61122.0,61121.0,0.03720501]
[1719665442444,2.372401,61122.0,61121.0,0.03720501]
[1719665442754,2.75553471,61122.0,61121.0,0.01420501]
[1719665442953,2.75553471,61122.0,61119.0,0.009229]
[1719665442954,2.87553998,61122.0,61119.0,0.009229]
[1719665443151,0.2208,61118.0,61116.0,0.0006089]
[1719665443261,2.53389471,61117.0,61116.0,0.0006089]
[1719665443468,2.53379471,61117.0,61116.0,0.0006089]
[1719665444094,2.53369471,61117.0,61116.0,0.0006089]
[1719665444301,2.371561,61117.0,61116.0,0.0006089]
[1719665444504,2.295261,61117.0,61116.0,0.0016089]
[1719665444714,2.383561,61117.0,61116.0,0.0016089]
[1719665444915,2.307261,61117.0,61116.0,0.0016089]
[1719665445122,2.307261,61117.0,61116.0,0.1301089]
[1719665445331,2.028063,61117.0,61116.0,0.27609701]
[1719665445954,2.029063,61117.0,61116.0,0.27509701]
[1719665446406,2.028963,61117.0,61116.0,0.27509701]
[1719665446813,2.021963,61117.0,61116.0,0.27509701]
[1719665447036,1.504135,61117.0,61116.0,0.27509701]
[1719665447238,1.509135,61117.0,61116.0,0.27509701]
[1719665447375,1.514135,61117.0,61116.0,0.27509701]
[1719665447575,1.509035,61117.0,61116.0,0.27509701]
[1719665447785,1.509135,61117.0,61116.0,0.27509701]
[1719665447986,1.514135,61117.0,61116.0,0.27509701]
[1719665448191,1.514135,61117.0,61116.0,0.04279701]
[1719665448950,1.514035,61117.0,61116.0,0.04279701]
[1719665449093,1.513935,61117.0,61116.0,0.04279701]
[1719665449293,1.508935,61117.0,61116.0,0.04279701]
[1719665449632,1.512935,61117.0,61116.0,0.04279701]
[1719665449855,1.507935,61117.0,61116.0,0.04279701]
[1719665450457,1.511935,61117.0,61116.0,0.04279701]
[1719665451101,1.511835,61117.0,61116.0,0.04279701]
[1719665451485,1.511835,61117.0,61116.0,0.01979701]
[1719665452424,1.511735,61117.0,61116.0,0.01979701]
[1719665452634,1.511635,61117.0,61116.0,0.01979701]
[1719665454407,1.511635,61117.0,61116.0,0.01989701]
[1719665454867,1.511635,61117.0,61116.0,0.01999701]
[1719665458802,1.639035,61117.0,61116.0,0.01999701]
[1719665459754,1.639035,61117.0,61116.0,0.0008089]
[1719665459977,0.2117,61117.0,61116.0,0.0008089]
[1719665460603,2.506361,61117.0,61116.0,0.0008089]
[1719665462377,2.526361,61117.0,61116.0,0.0008089]
[1719665462842,2.506361,61117.0,61116.0,0.0008089]
[1719665463397,2.66869998,61117.0,61116.0,0.0008089]
[1719665463593,0.02,61116.0,61115.0,0.0124273]
[1719665463803,0.02,61116.0,61111.0,0.009229]
[1719665463804,0.1021,61112.0,61111.0,0.009229]
[1719665464000,2.600461,61112.0,61111.0,0.009229]
[1719665464584,2.92513369,61112.0,61111.0,0.009229]
[1719665464960,2.92503369,61112.0,61111.0,0.009229]
[1719665465192,2.76269998,61112.0,61111.0,0.012229]
[1719665465437,0.3474,61110.0,61109.0,0.009229]
[1719665465655,0.3474,61110.0,61097.0,0.1103]
[1719665465656,0.1274,61106.0,61097.0,0.1103]
[1719665465859,0.0763,61102.0,61097.0,0.1103]
[1719665466067,2.53329998,61102.0,61097.0,0.1103]
[1719665466271,2.69563369,61102.0,61097.0,0.1103]
[1719665467094,2.53329998,61102.0,61095.0,0.005858]
[1719665467301,2.45699998,61101.0,61095.0,0.005858]
[1719665467505,0.0762,61096.0,61095.0,0.005858]
[1719665467679,2.294661,61099.0,61096.0,0.08130346]
[1719665467901,0.04920552,61108.0,61099.0,0.02]
[1719665468025,0.014,61106.0,61105.0,0.08130346]
[1719665468229,1.019634,61106.0,61105.0,0.08130346]
[1719665468444,1.458449,61106.0,61105.0,0.10430346]
[1719665468647,2.294661,61116.0,61106.0,0.02]
[1719665468855,2.294561,61116.0,61107.0,0.023]
[1719665469087,0.0763,61108.0,61107.0,0.023]
[1719665469295,1.120352,61108.0,61107.0,0.023]
[1719665469501,1.199745,61108.0,61107.0,0.023]
[1719665469720,1.265245,61108.0,61107.0,0.023]
[1719665470004,1.265145,61108.0,61107.0,0.1333]
[1719665470232,1.265145,61108.0,61107.0,0.2604]
[1719665470816,1.270145,61108.0,61107.0,0.2604]
[1719665471032,0.0812,61108.0,61107.0,0.2604]
[1719665471277,2.375761,61108.0,61107.0,0.2604]
[1719665471453,2.375761,61108.0,61107.0,0.27966379]
[1719665471632,2.381761,61108.0,61107.0,0.2604]
[1719665471835,2.381761,61108.0,61100.0,0.1103]
[1719665472058,2.381761,61108.0,61101.0,0.023]
[1719665472059,2.294561,61107.0,61101.0,0.023]
[1719665472358,0.0763,61102.0,61101.0,0.023]
[1719665473352,2.486561,61102.0,61101.0,0.04230727]
[1719665473722,2.486561,61102.0,61101.0,0.023]
[1719665473944,2.489461,61102.0,61101.0,0.023]
[1719665474933,2.489461,61102.0,61097.0,0.023]
[1719665475136,0.192,61098.0,61097.0,0.023]
[1719665475378,2.486561,61098.0,61097.0,0.023]
[1719665476318,2.486461,61098.0,61097.0,0.023]
[1719665476541,2.64879471,61098.0,61097.0,0.023]
[1719665476917,2.486461,61098.0,61097.0,0.026]
[1719665477124,2.486261,61098.0,61097.0,0.026]
[1719665478387,2.486261,61098.0,61097.0,0.023]
[1719665478633,2.588361,61098.0,61096.0,0.023]
[1719665478836,2.294561,61097.0,61096.0,0.023]
[1719665479562,2.294461,61097.0,61096.0,0.023]
[1719665480467,2.294361,61097.0,61096.0,0.023]
[1719665481820,2.294261,61097.0,61096.0,0.024]
[1719665483665,2.294161,61097.0,61096.0,0.024]
[1719665486196,2.294161,61097.0,61096.0,0.0241]
[1719665486979,2.294161,61097.0,61096.0,0.0242]
[1719665490846,0.192,61097.0,61096.0,0.2649]
[1719665491209,2.486161,61097.0,61096.0,0.2649]
[1719665491587,1.478184,61097.0,61096.0,0.2573]
[1719665491794,1.360488,61097.0,61096.0,0.2573]
[1719665492008,1.360488,61097.0,61096.0,0.27664863]
[1719665492619,0.944487,61097.0,61096.0,0.27664863]
[1719665492828,0.632512,61097.0,61096.0,0.27664863]
[1719665493135,0.385846,61097.0,61096.0,0.27992204]
[1719665493246,0.228401,61097.0,61096.0,0.29664863]
[1719665494256,0.192,61102.0,61098.0,0.02]
[1719665494574,1.751429,61101.0,61099.0,0.2525]
[1719665494778,1.751429,61101.0,61099.0,0.0423257]
[1719665494981,1.751429,61101.0,61099.0,0.023]
[1719665495181,1.751429,61101.0,61096.0,0.0232]
[1719665495384,0.0768,61097.0,61096.0,0.0232]
[1719665495627,1.538264,61097.0,61096.0,0.2527]
[1719665496088,1.538264,61097.0,61096.0,0.2727]
[1719665496464,1.497278,61097.0,61096.0,0.2727]
[1719665497086,1.497278,61097.0,61096.0,0.2527]
[1719665497851,1.497278,61097.0,61096.0,0.253624]
[1719665498080,1.353068,61097.0,61096.0,0.253624]
[1719665498283,1.429868,61097.0,61096.0,0.253624]
[1719665498698,1.429868,61097.0,61096.0,0.254624]
[1719665502354,1.11377941,61097.0,61096.0,0.254624]
[1719665502534,1.362422,61097.0,61096.0,0.254624]
[1719665513997,1.362422,61097.0,61096.0,0.274624]
[1719665514425,1.362422,61097.0,61096.0,0.27397263]
[1719665521318,1.362422,61097.0,61096.0,0.27267263]
[1719665521539,0.2415,61106.0,61096.0,0.27267263]
[1719665521747,0.0768,61097.0,61096.0,0.27267263]
[1719665521944,2.055713,61097.0,61096.0,0.27267263]
[1719665522100,0.0768,61097.0,61096.0,0.253324]
[1719665522297,0.0768,61097.0,61096.0,0.27267263]
[1719665522500,0.0768,61097.0,61096.0,0.253324]
[1719665523146,2.055713,61097.0,61096.0,0.253324]
[1719665523354,0.0768,61097.0,61096.0,0.252324]
[1719665523553,2.055713,61097.0,61096.0,0.252324]
[1719665524541,2.055713,61097.0,61096.0,0.253324]
[1719665524744,2.055713,61097.0,61096.0,0.025124]
[1719665524949,2.191113,61097.0,61096.0,0.025124]
[1719665525849,2.055713,61097.0,61096.0,0.025124]
[1719665528068,2.055713,61097.0,61096.0,0.151024]
[1719665528793,2.055713,61097.0,61096.0,0.171024]
[1719665529209,1.978913,61097.0,61096.0,0.151024]
[1719665529463,0.0768,61097.0,61096.0,0.171024]
[1719665529840,0.0768,61097.0,61096.0,0.19037451]
[1719665530045,0.0768,61097.0,61096.0,0.171024]
[1719665530828,2.055713,61097.0,61096.0,0.171024]
[1719665531232,0.972745,61097.0,61096.0,0.3027422]
[1719665531430,0.8115,61097.0,61096.0,0.2827422]
[1719665531635,0.8115,61097.0,61096.0,0.32209271]
[1719665532129,0.8115,61097.0,61096.0,0.29417451]
[1719665532337,0.04951237,61110.0,61107.0,0.02]
[1719665532541,0.913113,61109.0,61108.0,0.023]
[1719665532750,0.989913,61109.0,61108.0,0.023]
[1719665532954,1.341295,61109.0,61108.0,0.04268195]
[1719665533098,1.303795,61109.0,61108.0,0.023]
[1719665533310,0.0768,61109.0,61108.0,0.023]
[1719665533958,0.0778,61109.0,61108.0,0.023]
[1719665534419,1.225713,61109.0,61108.0,0.023]
[1719665534633,1.226713,61109.0,61108.0,0.023]
[1719665535503,1.228713,61109.0,61108.0,0.023]
[1719665536328,1.227713,61109.0,61108.0,0.023]
[1719665536531,1.226713,61109.0,61108.0,0.023]
[1719665536948,1.225713,61109.0,61108.0,0.023]
[1719665537161,1.227713,61109.0,61108.0,0.023]
[1719665538413,1.225713,61109.0,61108.0,0.023]
[1719665538785,1.226713,61109.0,61108.0,0.023]
[1719665539192,1.226713,61109.0,61108.0,0.2297]
[1719665539193,0.536527,61109.0,61108.0,0.2297]
[1719665539514,0.613327,61109.0,61108.0,0.29238018]
[1719665539757,0.614327,61109.0,61108.0,0.29238018]
[1719665540083,0.613327,61109.0,61108.0,0.2727]
[1719665540353,0.613327,61109.0,61108.0,0.29237754]
[1719665541076,0.614327,61109.0,61108.0,0.29237754]
[1719665541415,0.613327,61109.0,61108.0,0.2727]
[1719665541602,0.613327,61109.0,61108.0,0.2767]
[1719665541810,0.613327,61109.0,61108.0,0.29637754]
[1719665541997,0.613327,61109.0,61108.0,0.29237754]
[1719665542450,0.614327,61109.0,61108.0,0.29637754]
[1719665543248,0.614327,61109.0,61108.0,0.27637754]
[1719665543485,0.537527,61109.0,61108.0,0.48635427]
[1719665543702,0.002,61109.0,61108.0,0.48635427]
[1719665543807,0.002,61109.0,61108.0,0.43871652]
[1719665544473,0.002,61109.0,61108.0,0.45871652]
[1719665544679,0.232525,61109.0,61108.0,0.45871652]
[1719665545023,0.232525,61109.0,61108.0,0.43891652]
[1719665545818,0.232525,61109.0,61108.0,0.45891652]
[1719665546777,0.232525,61109.0,61108.0,0.54207817]
[1719665546778,0.002,61109.0,61108.0,0.54207817]
[1719665547984,0.002,61109.0,61108.0,0.91477817]
[1719665548188,0.002,61109.0,61108.0,1.01477817]
[1719665548851,0.001,61109.0,61108.0,1.01077817]
[1719665549223,0.002,61109.0,61108.0,1.01477817]
[1719665549873,0.001,61109.0,61108.0,1.01477817]
[1719665550087,0.002,61109.0,61108.0,1.02177817]
[1719665551426,0.002,61109.0,61108.0,0.93861652]
[1719665553790,0.002,61109.0,61108.0,1.00418452]
[1719665556725,0.002,61109.0,61108.0,0.78418452]
[1719665556925,0.002,61109.0,61108.0,1.00418452]
[1719665557939,0.002,61109.0,61108.0,0.78418452]
[1719665558134,0.002,61109.0,61108.0,0.88260297]
[1719665558846,0.002,61109.0,61108.0,1.10260297]
[1719665562638,0.09228691,61121.0,61120.0,0.02]
[1719665562836,1.41479591,61121.0,61120.0,0.043]
[1719665563039,1.46382596,61121.0,61120.0,0.06258067]
[1719665563247,1.41479591,61121.0,61120.0,0.06258067]
[1719665563649,0.760925,61121.0,61120.0,0.06258067]
[1719665564659,0.760925,61121.0,61120.0,0.06358067]
[1719665565012,0.684125,61121.0,61120.0,0.06358067]
[1719665565208,0.760925,61121.0,61120.0,0.06358067]
[1719665565422,0.684125,61121.0,61120.0,0.06358067]
[1719665565611,0.760925,61121.0,61120.0,0.06358067]
[1719665566221,0.761765,61121.0,61120.0,0.06358067]
[1719665566967,0.684965,61121.0,61120.0,0.06358067]
[1719665567166,0.14854,61121.0,61120.0,0.32414594]
[1719665567543,0.14854,61121.0,61120.0,0.30414594]
[1719665567744,0.14854,61121.0,61120.0,0.32414594]
[1719665568381,0.14854,61121.0,61120.0,0.32314594]
[1719665568592,0.14954,61121.0,61120.0,0.33214594]
[1719665569751,0.14954,61121.0,61120.0,0.30238067]
[1719665570409,0.15054,61121.0,61120.0,0.31138067]
[1719665570804,0.00284,61121.0,61120.0,0.18598067]
[1719665571038,0.451095,61121.0,61120.0,0.18598067]
[1719665571209,0.415095,61121.0,61120.0,0.18598067]
[1719665572072,0.415095,61121.0,61120.0,0.16598067]
[1719665572619,0.415095,61121.0,61120.0,0.21544594]
[1719665573172,0.415095,61121.0,61120.0,0.18598067]
[1719665573816,0.415095,61121.0,61120.0,0.08058067]
[1719665574121,0.415095,61121.0,61120.0,0.06058067]
[1719665574332,0.415095,61121.0,61120.0,0.08058067]
[1719665574533,0.415095,61121.0,61120.0,0.08068067]
[1719665574734,0.415095,61121.0,61120.0,0.08078067]
[1719665576687,0.00284,61121.0,61120.0,0.47471965]
[1719665579260,0.00284,61121.0,61120.0,0.45471965]
[1719665579485,0.00284,61121.0,61120.0,0.47471965]
[1719665586819,0.07964,61121.0,61120.0,0.47471965]
[1719665587224,0.07964,61121.0,61120.0,0.34841965]
[1719665589519,0.07964,61121.0,61120.0,0.24311965]
[1719665589685,0.07964,61121.0,61120.0,0.24639152]
[1719665589893,0.07964,61121.0,61120.0,0.24311965]
[1719665591387,0.07964,61121.0,61120.0,0.29091881]
[1719665591997,0.05119569,61126.0,61121.0,0.02]
[1719665592227,1.456863,61125.0,61123.0,0.08130346]
[1719665592430,1.456863,61125.0,61124.0,0.023]
[1719665592630,1.533663,61125.0,61124.0,0.04254672]
[1719665592853,0.814453,61125.0,61124.0,0.07776555]
[1719665593597,0.814453,61125.0,61124.0,0.04254672]
[1719665595797,0.814453,61125.0,61124.0,0.04754672]
[1719665595992,0.814453,61125.0,61124.0,0.05154672]
[1719665603762,1.027253,61125.0,61124.0,0.02854672]
[1719665604198,1.027253,61125.0,61124.0,0.009]
[1719665604961,1.027253,61125.0,61124.0,0.004]
[1719665605126,1.030253,61125.0,61124.0,0.027]
[1719665605531,1.030253,61125.0,61124.0,0.023]
[1719665605831,1.034253,61125.0,61124.0,0.023]
[1719665612626,0.2966,61125.0,61124.0,0.023]
[1719665614282,2.275513,61125.0,61124.0,0.023]
[1719665615729,0.2125,61123.0,61120.0,0.001124]
[1719665615946,0.2893,61121.0,61120.0,0.001124]
[1719665616229,2.268213,61121.0,61120.0,0.001124]
[1719665616434,0.2893,61121.0,61120.0,0.001124]
[1719665616825,2.268213,61121.0,61120.0,0.001124]
[1719665618637,2.268213,61121.0,61120.0,0.003124]
[1719665618838,2.268213,61121.0,61120.0,0.026124]
[1719665619470,2.268213,61121.0,61120.0,0.027124]
[1719665620502,2.268213,61121.0,61108.0,0.04965846]
[1719665620503,0.0769,61115.0,61108.0,0.04965846]
[1719665620777,0.0768,61109.0,61108.0,0.04965846]
[1719665620974,2.191313,61109.0,61108.0,0.04965846]
[1719665621177,2.191313,61109.0,61099.0,0.5713]
[1719665621375,0.0768,61100.0,61099.0,0.1038]
[1719665623054,2.056613,61100.0,61099.0,0.1138]
[1719665623209,2.056613,61100.0,61099.0,0.1568]
[1719665623431,1.654243,61100.0,61099.0,0.1368]
[1719665623631,1.654243,61100.0,61099.0,0.1568]
[1719665623979,1.654243,61100.0,61099.0,0.48572993]
[1719665623980,0.159289,61100.0,61099.0,0.48572993]
[1719665624463,0.159289,61100.0,61099.0,0.50547338]
[1719665624676,0.159289,61100.0,61099.0,0.47698243]
[1719665624677,0.002,61100.0,61099.0,0.47698243]
[1719665624885,0.002,61100.0,61099.0,0.67698243]
[1719665625089,0.002,61100.0,61099.0,0.47698243]
[1719665625287,0.002,61100.0,61099.0,0.55358162]
[1719665626329,0.002,61100.0,61099.0,0.75358162]
[1719665626535,0.002,61100.0,61099.0,0.55358162]
[1719665626778,0.002,61100.0,61099.0,0.47698243]
[1719665626960,0.0019,61100.0,61099.0,0.67698243]
[1719665627376,0.0018,61100.0,61099.0,0.67698243]
[1719665628924,0.0018,61100.0,61099.0,0.94968243]
[1719665629098,0.0018,61100.0,61099.0,1.11201614]
[1719665629563,0.0018,61100.0,61099.0,0.89201614]
[1719665629767,0.0018,61100.0,61099.0,1.11201614]
[1719665629953,0.0018,61100.0,61099.0,1.10201614]
[1719665629954,0.001,61100.0,61099.0,1.10201614]
[1719665630155,0.002,61100.0,61099.0,1.11001614]
[1719665630725,0.001,61100.0,61099.0,1.10101614]
[1719665631087,0.001,61100.0,61099.0,1.11501614]
[1719665631088,0.002,61100.0,61099.0,1.11501614]
[1719665631238,0.0019,61100.0,61099.0,1.11501614]
[1719665631446,0.0019,61100.0,61099.0,1.10101614]
[1719665631447,0.0009,61100.0,61099.0,1.10101614]
[1719665631876,0.0019,61100.0,61099.0,1.11501614]
[1719665632521,0.0019,61100.0,61099.0,0.89594014]
[1719665632839,0.0019,61100.0,61099.0,1.11594014]
[1719665635607,0.0019,61100.0,61099.0,1.11604014]
[1719665636824,0.0019,61100.0,61099.0,0.75370643]
[1719665637162,0.0019,61100.0,61099.0,0.95370643]
[1719665637976,0.0019,61100.0,61099.0,0.95380643]
[1719665639674,0.0019,61100.0,61099.0,0.73380643]
[1719665639876,0.0019,61100.0,61099.0,0.95380643]
[1719665640869,0.0019,61100.0,61099.0,1.11614014]
[1719665641050,0.0019,61100.0,61099.0,0.74344014]
[1719665641271,0.0019,61100.0,61099.0,0.94344014]
[1719665642068,0.0019,61100.0,61099.0,0.78110643]
[1719665645891,0.0019,61100.0,61099.0,0.58110643]
[1719665646458,0.0787,61100.0,61099.0,0.58110643]
[1719665653148,0.2032,61100.0,61099.0,0.04286745]
[1719665653363,2.182113,61100.0,61099.0,0.04286745]
[1719665653682,2.182113,61100.0,61099.0,0.023124]
[1719665654279,2.181113,61100.0,61099.0,0.009124]
[1719665654505,2.181113,61100.0,61099.0,0.010124]
[1719665654681,2.149065,61100.0,61099.0,0.033124]
[1719665654928,1.809361,61100.0,61099.0,0.033124]
[1719665655052,1.768388,61100.0,61099.0,0.053124]
[1719665655458,1.54649391,61100.0,61099.0,0.045124]
[1719665655864,1.534871,61100.0,61099.0,0.046124]
[1719665656180,0.718673,61100.0,61099.0,0.046124]
[1719665656403,0.610696,61100.0,61099.0,0.046124]
[1719665656585,0.610696,61100.0,61099.0,0.0659893]
[1719665657218,0.550725,61100.0,61099.0,0.0659893]
[1719665658001,0.443079,61100.0,61099.0,0.0659893]
[1719665658246,0.412371,61100.0,61099.0,0.29689548]
[1719665658415,0.379404,61100.0,61099.0,0.29689548]
[1719665658848,0.379404,61100.0,61099.0,0.22832828]
[1719665660248,0.226315,61100.0,61099.0,0.45572828]
[1719665661906,0.1639,61110.0,61099.0,0.43572828]
[1719665662040,0.0768,61100.0,61099.0,0.2933893]
[1719665662246,0.745344,61100.0,61099.0,0.0659893]
[1719665662451,0.746971,61100.0,61099.0,0.0659893]
[1719665662655,0.746971,61100.0,61099.0,0.0649893]
[1719665662852,0.746971,61100.0,61099.0,0.0659893]
[1719665663259,0.746971,61100.0,61099.0,0.0639893]
[1719665663660,0.747971,61100.0,61099.0,0.0739893]
[1719665664077,0.747971,61100.0,61099.0,0.0729893]
[1719665664597,0.748971,61100.0,61099.0,0.0809893]
[1719665664794,0.49303234,61100.0,61099.0,0.0809893]
[1719665665051,0.56983234,61100.0,61099.0,0.0809893]
[1719665665278,0.456003,61100.0,61099.0,0.0809893]
[1719665665646,0.456003,61100.0,61099.0,0.24332828]
[1719665665881,0.456003,61100.0,61099.0,0.30930205]
[1719665666817,0.456843,61100.0,61099.0,0.30930205]
[1719665668577,0.456843,61100.0,61099.0,0.24332828]
[1719665672830,0.456843,61100.0,61099.0,0.22332828]
[1719665673233,0.456843,61100.0,61099.0,0.44662828]
[1719665673585,0.456843,61100.0,61099.0,0.46662828]
[1719665676682,0.386575,61100.0,61099.0,0.46662828]
[1719665677177,0.237875,61100.0,61099.0,0.46662828]
[1719665679423,0.237875,61100.0,61099.0,0.55219205]
[1719665680477,0.07964,61100.0,61099.0,0.55219205]
[1719665680686,0.377486,61100.0,61099.0,0.55219205]
[1719665680899,0.377486,61100.0,61099.0,0.46662828]
[1719665687558,0.364524,61100.0,61099.0,0.46662828]
[1719665695078,0.409147,61100.0,61099.0,0.46662828]
[1719665696349,0.409147,61100.0,61099.0,0.46652828]
[1719665700189,0.261547,61100.0,61099.0,0.46652828]
[1719665700388,0.00284,61100.0,61099.0,0.53208205]
[1719665700553,0.00284,61100.0,61099.0,0.85208205]
[1719665700747,0.00284,61100.0,61099.0,0.63208205]
[1719665701179,0.00284,61100.0,61099.0,0.85208205]
[1719665701387,0.00284,61100.0,61099.0,1.02478205]
[1719665701610,0.00184,61100.0,61099.0,1.01678205]
[1719665702045,0.00184,61100.0,61099.0,1.02178205]
[1719665702265,0.00084,61100.0,61099.0,1.02178205]
[1719665702411,0.00084,61100.0,61099.0,1.03578205]
[1719665706368,0.00084,61100.0,61099.0,0.81578205]
[1719665706781,0.00084,61100.0,61099.0,1.03578205]
[1719665707616,0.00084,61100.0,61099.0,1.03568205]
[1719665708204,0.00084,61100.0,61099.0,1.23568205]
[1719665711630,0.00084,61100.0,61099.0,1.22168205]
[1719665711861,0.00084,61100.0,61099.0,1.31568205]
[1719665712245,0.00084,61100.0,61099.0,1.51568205]
[1719665712386,0.00084,61100.0,61099.0,1.48768205]
[1719665712582,0.00084,61100.0,61099.0,1.51568205]
[1719665716994,0.00084,61100.0,61099.0,1.29568205]
[1719665717921,0.00084,61100.0,61099.0,1.51568205]
[1719665722816,0.00084,61100.0,61099.0,1.50168205]
[1719665722932,0.00084,61100.0,61099.0,1.48768205]
[1719665723135,0.18024,61126.0,61125.0,0.02]
[1719665723389,0.25704,61126.0,61125.0,0.18233898]
[1719665723556,0.25704,61126.0,61125.0,0.16233898]
[1719665723947,0.25704,61126.0,61125.0,0.20250252]
[1719665724355,0.25704,61126.0,61125.0,0.02016354]
[1719665724802,0.07764,61126.0,61121.0,0.02]
[1719665725027,1.703281,61125.0,61122.0,0.16233898]
[1719665725200,0.0768,61123.0,61122.0,0.20552543]
[1719665725402,0.2562,61123.0,61122.0,0.18533898]
[1719665725757,0.2562,61123.0,61122.0,0.20552543]
[1719665726592,0.2562,61123.0,61122.0,0.20952543]
[1719665727449,0.2562,61123.0,61122.0,0.21252543]
[1719665729125,0.2562,61123.0,61122.0,0.23252543]
[1719665729328,0.00222124,61123.0,61122.0,0.23252543]
[1719665729460,0.00222124,61123.0,61122.0,0.21252543]
[1719665730312,0.07902124,61123.0,61122.0,0.21252543]
[1719665731661,0.07902124,61123.0,61122.0,0.23252543]
[1719665732082,0.07902124,61123.0,61122.0,0.21252543]
[1719665732900,0.07986124,61123.0,61122.0,0.21252543]
[1719665733731,0.07986124,61123.0,61122.0,0.23252543]
[1719665734177,0.07986124,61123.0,61122.0,0.21252543]
[1719665735981,0.07986124,61123.0,61122.0,0.20852543]
[1719665736390,0.07986124,61123.0,61122.0,0.20952543]
[1719665736598,0.07986124,61123.0,61122.0,0.20552543]
[1719665736813,0.07986124,61123.0,61122.0,0.20852543]
[1719665737032,0.07986124,61123.0,61122.0,0.21352543]
[1719665737239,0.07986124,61123.0,61122.0,0.20552543]
[1719665737690,0.07986124,61123.0,61122.0,0.21252543]
[1719665740575,0.00306124,61123.0,61122.0,0.21252543]
[1719665740779,0.07986124,61123.0,61122.0,0.21252543]
[1719665743387,0.07986124,61123.0,61122.0,0.23252543]
[1719665743594,0.07986124,61123.0,61122.0,0.21252543]
[1719665744218,0.07986124,61123.0,61122.0,0.21262543]
[1719665748453,0.07764,61123.0,61122.0,0.23262543]
[1719665749461,0.00084,61123.0,61122.0,0.23262543]
[1719665749885,0.07764,61123.0,61122.0,0.23262543]
[1719665754729,0.00084,61123.0,61122.0,0.23262543]
[1719665754982,0.07764,61123.0,61122.0,0.23262543]
[1719665758701,0.07764,61123.0,61122.0,0.22962543]
[1719665758926,0.07764,61123.0,61122.0,0.23262543]
[1719665759258,0.00084,61123.0,61122.0,0.23262543]
[1719665759465,0.00084,61123.0,61122.0,0.46419709]
[1719665759678,0.00084,61123.0,61122.0,0.66019709]
[1719665759679,0.07764,61123.0,61122.0,0.66019709]
[1719665759885,0.00084,61123.0,61122.0,0.75103159]
[1719665760090,0.00084,61123.0,61122.0,0.74703159]
[1719665760091,0.07764,61123.0,61122.0,0.74703159]
[1719665760555,0.07764,61123.0,61122.0,0.75603159]
[1719665760775,0.00084,61123.0,61122.0,1.21973159]
[1719665761193,0.00084,61123.0,61122.0,1.23373159]
[1719665761405,0.07764,61123.0,61122.0,1.23373159]
[1719665761617,0.07764,61123.0,61122.0,1.21973159]
[1719665761792,0.07764,61123.0,61122.0,1.01973159]
[1719665762024,0.07764,61123.0,61122.0,1.21073159]
[1719665762448,0.07764,61123.0,61122.0,1.22173159]
[1719665763460,0.07764,61123.0,61122.0,1.22473159]
[1719665764020,0.07764,61123.0,61122.0,1.23883159]
[1719665765279,0.07764,61123.0,61122.0,1.22483159]
[1719665765486,0.07764,61123.0,61122.0,1.23883159]
[1719665765889,0.07764,61123.0,61122.0,1.23975559]
[1719665767854,0.00084,61123.0,61122.0,1.23975559]
[1719665767990,0.07764,61123.0,61122.0,1.23975559]
[1719665770660,0.00084,61123.0,61122.0,1.23975559]
[1719665770972,0.07764,61123.0,61122.0,1.23975559]
[1719665773512,0.3,61155.0,61122.0,1.23975559]
[1719665773721,0.3,61155.0,61144.0,0.02]
[1719665773722,1.90687451,61154.0,61144.0,0.02]
[1719665773926,1.703281,61153.0,61145.0,0.023]
[1719665774089,0.0768,61146.0,61145.0,0.023]
[1719665774288,1.780081,61146.0,61145.0,0.043]
[1719665774493,1.780081,61146.0,61145.0,0.06289283]
[1719665774700,1.780081,61146.0,61145.0,0.043]
[1719665776105,1.780081,61146.0,61145.0,0.044]
[1719665776470,1.780081,61146.0,61145.0,0.045]
[1719665777424,1.703281,61146.0,61145.0,0.045]
[1719665777616,0.0768,61146.0,61145.0,0.045]
[1719665778293,1.780081,61146.0,61145.0,0.044]
[1719665778692,1.780081,61146.0,61145.0,0.045]
[1719665779128,1.780081,61146.0,61145.0,0.044]
[1719665779532,1.780081,61146.0,61145.0,0.043]
[1719665780477,1.783681,61146.0,61145.0,0.043]
[1719665783776,1.780081,61146.0,61145.0,0.043]
[1719665783907,0.748549,61146.0,61145.0,0.043]
[1719665784312,0.748549,61146.0,61145.0,0.0431]
[1719665786608,0.748549,61146.0,61145.0,0.04303121]
[1719665786801,0.748549,61146.0,61145.0,0.04313121]
[1719665788230,0.671749,61146.0,61145.0,0.04313121]
[1719665788405,0.748549,61146.0,61145.0,0.04313121]
[1719665788609,0.748549,61146.0,61145.0,0.0530757]
[1719665790001,0.748549,61146.0,61145.0,0.0330757]
[1719665790913,0.748549,61146.0,61145.0,0.0530757]
[1719665792297,0.748549,61146.0,61145.0,0.0330757]
[1719665799037,1.780081,61146.0,61145.0,0.0330757]
[1719665799387,1.780081,61146.0,61145.0,0.02313121]
[1719665801109,1.785581,61146.0,61145.0,0.02313121]
[1719665802274,1.785581,61146.0,61145.0,0.0002]
[1719665805599,1.780081,61146.0,61145.0,0.0002]
[1719665807718,1.744616,61146.0,61145.0,0.0002]
[1719665807932,1.415971,61146.0,61145.0,0.0432]
[1719665810155,1.415971,61146.0,61145.0,0.0232]